[Event "71st RUS-ch Superfinal Women 2021"]
[Site "Ufa"]
[Date "2021.10.16"]
[Round "7.4"]
[White "Pogonina, Natalija"]
[Black "Shuvalova, Polina"]
[Result "1/2-1/2"]
[ECO "A09"]
[WhiteElo "2467"]
[BlackElo "2509"]
[Annotator "ChessBase"]
[PlyCount "72"]
[EventDate "2021.10.09"]
[EventType "tourn"]
[EventCountry "RUS"]
[SourceTitle "playchess.com"]
[Source "ChessBase"]
[SourceQuality "1"]
[TimeControl "40/5400+30:1800+30"]

1. Nf3 {[%emt 0:00:05]} d5 {[%emt 0:00:12]} 2. c4 {[%emt 0:00:16]} d4 {[%emt 0:
00:08]} 3. g3 {[%emt 0:01:41]} c5 {[%emt 0:07:41]} 4. b4 {[%emt 0:12:57]} cxb4
{[%emt 0:02:18]} 5. a3 {[%emt 0:00:07]} bxa3 {[%emt 0:01:13]} 6. Bxa3 {[%emt 0:
00:56]} Nc6 {[%emt 0:00:14]} 7. Bg2 {[%emt 0:00:56]} Nf6 {[%emt 0:05:24]} 8.
O-O {[%emt 0:00:35]} e5 {[%emt 0:04:44]} 9. Bxf8 {[%emt 0:08:04]} Kxf8 {
[%emt 0:00:18]} 10. d3 {[%emt 0:00:05]} g6 {[%emt 0:00:53]} 11. Qb3 {[%emt 0:
01:52]} Kg7 {[%emt 0:01:37]} 12. Na3 {[%emt 0:09:19]} Qe7 {[%emt 0:01:48]} 13.
Rfb1 {[%emt 0:02:40]} Rd8 {[%emt 0:04:40]} 14. Nd2 {[%emt 0:04:44]} a5 {
[%emt 0:03:15]} 15. Nc2 {[%emt 0:02:05]} Ra6 {[%emt 0:09:43]} 16. Qa3 {[%emt 0:
10:54]} Qxa3 {[%emt 0:19:48]} 17. Rxa3 {[%emt 0:00:27]} a4 {[%emt 0:01:44]} 18.
Nb4 {[%emt 0:07:14]} Nxb4 {[%emt 0:02:19]} 19. Rxb4 {[%emt 0:00:19]} Bd7 {
[%emt 0:00:55]} 20. Rxb7 {[%emt 0:03:52]} Raa8 {[%emt 0:05:59]} 21. Nf3 {
[%emt 0:09:08]} e4 {[%emt 0:08:14]} 22. Ne5 {[%emt 0:01:10]} Be8 {[%emt 0:06:
51]} 23. Bxe4 {[%emt 0:04:20]} Nxe4 {[%emt 0:00:22]} 24. dxe4 {[%emt 0:00:04]}
Rdb8 {[%emt 0:00:14]} 25. Rxb8 {[%emt 0:01:12]} Rxb8 {[%emt 0:00:05]} 26. Nd3 {
[%emt 0:04:12]} Rb1+ {[%emt 0:02:29]} 27. Kg2 {[%emt 0:00:04]} g5 {[%emt 0:00:
57]} 28. h3 {[%emt 0:02:01]} Bc6 {[%emt 0:00:23]} 29. f3 {[%emt 0:00:11]} h5 {
[%emt 0:00:07]} 30. Kf2 {[%emt 0:03:51]} Rh1 {[%emt 0:03:03]} 31. Nc5 {[%emt 0:
02:31]} Rh2+ {[%emt 0:01:49]} 32. Kf1 {[%emt 0:00:09]} Rh1+ {[%emt 0:00:19]}
33. Kf2 {[%emt 0:05:44]} Rh2+ {[%emt 0:00:05]} 34. Kf1 {[%emt 0:00:13]} Rh1+ {
[%emt 0:00:04]} 35. Kf2 {[%emt 0:00:11]} Rh2+ {[%emt 0:00:26]} 36. Kf1 {
[%emt 0:00:10]} Rh1+ 1/2-1/2

[Event "71st RUS-ch Superfinal Women 2021"]
[Site "Ufa"]
[Date "2021.10.16"]
[Round "7.5"]
[White "Voit, Daria"]
[Black "Gunina, Valentina"]
[Result "0-1"]
[ECO "D10"]
[WhiteElo "2357"]
[BlackElo "2462"]
[Annotator "ChessBase"]
[PlyCount "64"]
[EventDate "2021.10.09"]
[EventType "tourn"]
[EventCountry "RUS"]
[SourceTitle "playchess.com"]
[Source "ChessBase"]
[SourceQuality "1"]
[TimeControl "40/5400+30:1800+30"]

1. d4 {[%emt 0:00:04]} d5 {[%emt 0:00:08]} 2. c4 {[%emt 0:00:06]} c6 {[%emt 0:
00:10]} 3. Nc3 {[%emt 0:00:07]} Nf6 {[%emt 0:00:11]} 4. e3 {[%emt 0:00:09]} Bf5
{[%emt 0:00:07]} 5. Nf3 {[%emt 0:00:13]} e6 {[%emt 0:00:26]} 6. Nh4 {[%emt 0:
00:09]} Bg6 {[%emt 0:00:07]} 7. Nxg6 {[%emt 0:05:22]} hxg6 {[%emt 0:00:30]} 8.
Be2 {[%emt 0:07:04]} Nbd7 {[%emt 0:00:35]} 9. h3 {[%emt 0:00:26]} Bd6 {[%emt 0:
00:26]} 10. Bd2 {[%emt 0:01:43]} Qe7 {[%emt 0:00:20]} 11. a3 {[%emt 0:01:53]}
dxc4 {[%emt 0:04:55]} 12. Bxc4 {[%emt 0:00:44]} e5 {[%emt 0:00:09]} 13. d5 {
[%emt 0:08:56]} e4 {[%emt 0:02:58]} 14. dxc6 {[%emt 0:00:52]} bxc6 {[%emt 0:00:
05]} 15. Ne2 {[%emt 0:11:51]} Ne5 {[%emt 0:01:12]} 16. Qa4 {[%emt 0:00:49]}
Nfd7 {[%emt 0:02:19]} 17. Qc2 {[%emt 0:11:36]} Nc5 {[%emt 0:02:24]} 18. Nc1 {
[%emt 0:04:30]} Qg5 {[%emt 0:03:12]} 19. Bf1 {[%emt 0:00:48]} O-O {[%emt 0:03:
07]} 20. Bc3 {[%emt 0:18:18]} Rfd8 {[%emt 0:04:45]} 21. Bxe5 {[%emt 0:16:25]}
Qxe5 {[%emt 0:00:04]} 22. Bc4 {[%emt 0:01:36]} Bc7 {[%emt 0:00:35]} 23. Rb1 {
[%emt 0:00:14]} Rd7 {[%emt 0:00:46]} 24. b4 {[%emt 0:03:50]} Rad8 {[%emt 0:01:
32]} 25. Nb3 {[%emt 0:00:28]} Nxb3 {[%emt 0:01:00]} 26. Bxb3 {[%emt 0:00:32]}
a5 {[%emt 0:01:37]} 27. g3 {[%emt 0:01:12]} a4 {[%emt 0:08:36]} 28. Bxa4 {
[%emt 0:02:42]} Qf5 {[%emt 0:07:03]} 29. O-O {[%emt 0:01:09]} Rd2 {[%emt 0:00:
20]} 30. Qxc6 {[%emt 0:00:59]} Bxg3 {[%emt 0:00:34]} 31. Kg2 {[%emt 0:00:41]}
Rxf2+ {[%emt 0:00:31]} 32. Kxg3 {[%emt 0:00:17]} Qg5+ {[%emt 0:00:10]} 0-1

[Event "71st RUS-ch Superfinal Women 2021"]
[Site "Ufa"]
[Date "2021.10.16"]
[Round "7.6"]
[White "Galliamova, Alisa"]
[Black "Bodnaruk, Anastasia"]
[Result "0-1"]
[ECO "E62"]
[WhiteElo "2421"]
[BlackElo "2415"]
[Annotator "ChessBase"]
[PlyCount "106"]
[EventDate "2021.10.09"]
[EventType "tourn"]
[EventCountry "RUS"]
[SourceTitle "playchess.com"]
[Source "ChessBase"]
[SourceQuality "1"]
[TimeControl "40/5400+30:1800+30"]

1. d4 {[%emt 0:00:03]} Nf6 {[%emt 0:00:04]} 2. Nf3 {[%emt 0:00:09]} g6 {
[%emt 0:00:05]} 3. g3 {[%emt 0:00:13]} Bg7 {[%emt 0:00:05]} 4. Bg2 {[%emt 0:00:
10]} O-O {[%emt 0:00:22]} 5. O-O {[%emt 0:00:31]} d6 {[%emt 0:00:35]} 6. c4 {
[%emt 0:00:17]} Nc6 {[%emt 0:00:08]} 7. Nc3 {[%emt 0:00:15]} e5 {[%emt 0:01:22]
} 8. dxe5 {[%emt 0:01:39]} dxe5 {[%emt 0:00:04]} 9. Bg5 {[%emt 0:00:46]} Be6 {
[%emt 0:00:28]} 10. Nd2 {[%emt 0:01:12]} Qc8 {[%emt 0:00:55]} 11. Nd5 {[%emt 0:
01:48]} Nd7 {[%emt 0:00:40]} 12. b4 {[%emt 0:11:59]} h6 {[%emt 0:01:38]} 13.
Be3 {[%emt 0:05:55]} Re8 {[%emt 0:00:31]} 14. Rc1 {[%emt 0:03:41]} f5 {[%emt 0:
02:26]} 15. b5 {[%emt 0:14:17]} Nd8 {[%emt 0:01:13]} 16. c5 {[%emt 0:00:26]} e4
{[%emt 0:10:48]} 17. Nc4 {[%emt 0:02:01]} Nf7 {[%emt 0:07:31]} 18. a4 {[%emt 0:
09:51]} Bxd5 {[%emt 0:11:36]} 19. Qxd5 {[%emt 0:00:31]} Nf6 {[%emt 0:00:04]}
20. Qd2 {[%emt 0:04:38]} Rd8 {[%emt 0:06:05]} 21. Qa5 {[%emt 0:03:22]} Nd5 {
[%emt 0:03:02]} 22. Rfd1 {[%emt 0:00:54]} Bc3 {[%emt 0:17:51]} 23. Rxc3 {
[%emt 0:00:40]} b6 {[%emt 0:00:05]} 24. cxb6 {[%emt 0:12:23]} cxb6 {[%emt 0:02:
55]} 25. Nxb6 {[%emt 0:01:25]} Qxc3 {[%emt 0:00:27]} 26. Qxc3 {[%emt 0:00:17]}
Nxc3 {[%emt 0:00:05]} 27. Rxd8+ {[%emt 0:00:44]} Rxd8 {[%emt 0:00:03]} 28. Nc4
{[%emt 0:00:12]} Rd7 {[%emt 0:14:34]} 29. f3 {[%emt 0:07:48]} Nxe2+ {[%emt 0:
06:30]} 30. Kf1 {[%emt 0:01:06]} Nc3 {[%emt 0:00:16]} 31. fxe4 {[%emt 0:01:47]}
fxe4 {[%emt 0:00:19]} 32. b6 {[%emt 0:12:25]} axb6 {[%emt 0:03:01]} 33. Nxb6 {
[%emt 0:00:09]} Rd1+ {[%emt 0:01:00]} 34. Kf2 {[%emt 0:00:04]} Ne5 {[%emt 0:04:
12]} 35. Bh3 {[%emt 0:00:13]} Kf7 {[%emt 0:01:56]} 36. a5 {[%emt 0:02:05]} Nd3+
{[%emt 0:04:29]} 37. Kg2 {[%emt 0:00:04]} Ne1+ {[%emt 0:00:31]} 38. Kf2 {
[%emt 0:00:14]} Nd3+ {[%emt 0:00:08]} 39. Kg2 {[%emt 0:00:04]} Ra1 {[%emt 0:00:
23]} 40. Nc4 {[%emt 0:00:00]} Ra2+ {[%emt 0:00:00]} 41. Kf1 {[%emt 0:11:00]}
Ra4 {[%emt 0:15:51]} 42. Nd6+ {[%emt 0:03:26]} Ke7 {[%emt 0:01:51]} 43. Nc8+ {
[%emt 0:01:22]} Kf7 {[%emt 0:06:13]} 44. Nd6+ {[%emt 0:00:49]} Kf6 {[%emt 0:00:
43]} 45. Bb6 {[%emt 0:05:12]} Nd5 {[%emt 0:03:13]} 46. Bg4 {[%emt 0:12:38]}
Ra1+ {[%emt 0:04:22]} 47. Kg2 {[%emt 0:01:01]} Ra2+ {[%emt 0:00:02]} 48. Kf1 {
[%emt 0:00:49]} e3 {[%emt 0:02:30]} 49. Nc4 {[%emt 0:00:47]} Nxb6 {[%emt 0:01:
03]} 50. axb6 {[%emt 0:00:08]} Rf2+ {[%emt 0:00:28]} 51. Kg1 {[%emt 0:00:03]}
e2 {[%emt 0:00:33]} 52. Bxe2 {[%emt 0:00:06]} Rxe2 {[%emt 0:00:01]} 53. b7 {
[%emt 0:00:04]} Re1+ {[%emt 0:00:21]} 0-1

[Event "71st RUS-ch Superfinal Women 2021"]
[Site "Ufa"]
[Date "2021.10.17"]
[Round "8.1"]
[White "Ovod, Evgenija"]
[Black "Bodnaruk, Anastasia"]
[Result "1-0"]
[ECO "B54"]
[WhiteElo "2331"]
[BlackElo "2415"]
[Annotator "ChessBase"]
[PlyCount "81"]
[EventDate "2021.10.09"]
[EventType "tourn"]
[EventCountry "RUS"]
[SourceTitle "playchess.com"]
[Source "ChessBase"]
[SourceQuality "1"]
[TimeControl "40/5400+30:1800+30"]

1. e4 {[%emt 0:00:03]} c5 {[%emt 0:00:07]} 2. Nf3 {[%emt 0:00:06]} d6 {[%emt 0:
00:09]} 3. d4 {[%emt 0:00:07]} cxd4 {[%emt 0:00:20]} 4. Nxd4 {[%emt 0:00:05]}
Nf6 {[%emt 0:00:06]} 5. f3 {[%emt 0:00:05]} e5 {[%emt 0:00:57]} 6. Nb3 {
[%emt 0:00:06]} a5 {[%emt 0:00:50]} 7. a4 {[%emt 0:00:08]} Be7 {[%emt 0:05:50]}
8. Bb5+ {[%emt 0:00:07]} Nc6 {[%emt 0:01:32]} 9. c4 {[%emt 0:00:07]} O-O {
[%emt 0:02:15]} 10. Be3 {[%emt 0:00:06]} Be6 {[%emt 0:05:26]} 11. Nc3 {[%emt 0:
00:07]} Nd7 {[%emt 0:02:05]} 12. O-O {[%emt 0:08:12]} Nc5 {[%emt 0:04:29]} 13.
Nd5 {[%emt 0:08:27]} Bg5 {[%emt 0:11:58]} 14. Bf2 {[%emt 0:00:12]} Bxd5 {
[%emt 0:10:06]} 15. exd5 {[%emt 0:05:19]} Nxb3 {[%emt 0:01:13]} 16. Qxb3 {
[%emt 0:02:11]} Nb4 {[%emt 0:07:02]} 17. Rad1 {[%emt 0:05:04]} Rc8 {[%emt 0:02:
38]} 18. Rfe1 {[%emt 0:01:32]} b6 {[%emt 0:07:21]} 19. Re2 {[%emt 0:07:27]} f5
{[%emt 0:11:44]} 20. Be1 {[%emt 0:02:12]} Rf6 {[%emt 0:05:33]} 21. Bxb4 {
[%emt 0:01:23]} axb4 {[%emt 0:00:02]} 22. Qxb4 {[%emt 0:00:04]} Rg6 {[%emt 0:
01:16]} 23. Qc3 {[%emt 0:11:37]} Bf4 {[%emt 0:00:47]} 24. g3 {[%emt 0:01:16]}
Qh4 {[%emt 0:10:26]} 25. Rg2 {[%emt 0:02:34]} Qh3 {[%emt 0:00:01]} 26. Re1 {
[%emt 0:03:03]} h5 {[%emt 0:07:12]} 27. Ree2 {[%emt 0:02:01]} Bg5 {[%emt 0:01:
55]} 28. Qc2 {[%emt 0:13:58]} Rf8 {[%emt 0:00:33]} 29. Bd7 {[%emt 0:00:55]} Bd8
{[%emt 0:00:33]} 30. b4 {[%emt 0:01:32]} h4 {[%emt 0:00:30]} 31. g4 {[%emt 0:
09:50]} e4 {[%emt 0:00:05]} 32. fxe4 {[%emt 0:00:52]} f4 {[%emt 0:00:49]} 33.
Bf5 {[%emt 0:07:14]} f3 {[%emt 0:00:32]} 34. Re3 {[%emt 0:04:17]} Bg5 {[%emt 0:
00:35]} 35. Rd3 {[%emt 0:00:10]} Rgf6 {[%emt 0:00:31]} 36. Rf2 {[%emt 0:00:55]}
Rxf5 {[%emt 0:00:28]} 37. gxf5 {[%emt 0:00:18]} Qg4+ {[%emt 0:00:18]} 38. Kf1 {
[%emt 0:00:17]} Re8 {[%emt 0:00:39]} 39. Rdxf3 {[%emt 0:01:23]} Rxe4 {[%emt 0:
00:01]} 40. h3 {[%emt 0:00:00]} Rxc4 {[%emt 0:00:00]} 41. hxg4 {[%emt 0:00:27]}
1-0

[Event "71st RUS-ch Superfinal Women 2021"]
[Site "Ufa"]
[Date "2021.10.17"]
[Round "8.5"]
[White "Guseva, Marina"]
[Black "Bivol, Alina"]
[Result "1/2-1/2"]
[ECO "A40"]
[WhiteElo "2394"]
[BlackElo "2392"]
[Annotator "ChessBase"]
[PlyCount "68"]
[EventDate "2021.10.09"]
[EventType "tourn"]
[EventCountry "RUS"]
[SourceTitle "playchess.com"]
[Source "ChessBase"]
[SourceQuality "1"]
[TimeControl "40/5400+30:1800+30"]

1. d4 {[%emt 0:00:02]} e6 {[%emt 0:00:23]} 2. c4 {[%emt 0:00:04]} b6 {[%emt 0:
00:29]} 3. e4 {[%emt 0:00:10]} Bb4+ {[%emt 0:00:22]} 4. Bd2 {[%emt 0:00:12]}
Bxd2+ {[%emt 0:00:10]} 5. Nxd2 {[%emt 0:00:13]} Ne7 {[%emt 0:00:10]} 6. Bd3 {
[%emt 0:01:18]} O-O {[%emt 0:00:34]} 7. Ne2 {[%emt 0:05:57]} d6 {[%emt 0:04:11]
} 8. O-O {[%emt 0:06:01]} e5 {[%emt 0:00:45]} 9. d5 {[%emt 0:01:36]} a5 {
[%emt 0:01:24]} 10. Bc2 {[%emt 0:00:48]} f5 {[%emt 0:06:48]} 11. exf5 {[%emt 0:
08:20]} Nxf5 {[%emt 0:02:43]} 12. a3 {[%emt 0:00:09]} Qe7 {[%emt 0:09:23]} 13.
Ne4 {[%emt 0:02:55]} Nd7 {[%emt 0:07:04]} 14. Qd3 {[%emt 0:01:34]} g6 {[%emt 0:
05:40]} 15. Rae1 {[%emt 0:02:12]} Ba6 {[%emt 0:11:08]} 16. Ba4 {[%emt 0:14:08]}
Nc5 {[%emt 0:07:37]} 17. Nxc5 {[%emt 0:00:05]} bxc5 {[%emt 0:01:08]} 18. b3 {
[%emt 0:00:32]} Bc8 {[%emt 0:04:00]} 19. f4 {[%emt 0:16:16]} e4 {[%emt 0:07:51]
} 20. Qc3 {[%emt 0:00:04]} h5 {[%emt 0:01:38]} 21. Ng3 {[%emt 0:15:13]} Nxg3 {
[%emt 0:00:22]} 22. Qxg3 {[%emt 0:00:13]} Bf5 {[%emt 0:00:18]} 23. Qc3 {
[%emt 0:00:23]} Qg7 {[%emt 0:02:24]} 24. Qxg7+ {[%emt 0:00:26]} Kxg7 {[%emt 0:
00:01]} 25. Re3 {[%emt 0:00:12]} Rf7 {[%emt 0:02:51]} 26. h4 {[%emt 0:04:40]}
Rb8 {[%emt 0:00:26]} 27. Bb5 {[%emt 0:01:10]} Kf6 {[%emt 0:01:44]} 28. a4 {
[%emt 0:00:50]} Re7 {[%emt 0:01:19]} 29. Rfe1 {[%emt 0:00:04]} Rd8 {[%emt 0:05:
30]} 30. Kf2 {[%emt 0:00:07]} Rb8 {[%emt 0:00:29]} 31. Kg3 {[%emt 0:00:04]} Rd8
{[%emt 0:01:19]} 32. Kf2 {[%emt 0:00:04]} Rb8 {[%emt 0:00:35]} 33. Kg3 {
[%emt 0:00:04]} Rd8 {[%emt 0:00:07]} 34. Kf2 {[%emt 0:00:03]} Rb8 {[%emt 0:00:
12]} 1/2-1/2

[Event "71st RUS-ch Superfinal Women 2021"]
[Site "Ufa"]
[Date "2021.10.20"]
[Round "11.1"]
[White "Bivol, Alina"]
[Black "Ovod, Evgenija"]
[Result "1/2-1/2"]
[ECO "C36"]
[WhiteElo "2392"]
[BlackElo "2331"]
[Annotator "ChessBase"]
[PlyCount "76"]
[EventDate "2021.10.09"]
[EventType "tourn"]
[EventCountry "RUS"]
[SourceTitle "playchess.com"]
[Source "ChessBase"]
[SourceQuality "1"]
[TimeControl "40/5400+30:1800+30"]

1. e4 {[%emt 0:00:08]} e5 {[%emt 0:00:04]} 2. f4 {[%emt 0:00:14]} exf4 {
[%emt 0:00:10]} 3. Nf3 {[%emt 0:00:07]} d5 {[%emt 0:00:08]} 4. exd5 {[%emt 0:
00:08]} Nf6 {[%emt 0:00:07]} 5. Bb5+ {[%emt 0:00:03]} c6 {[%emt 0:00:08]} 6.
dxc6 {[%emt 0:00:06]} Nxc6 {[%emt 0:00:37]} 7. Nc3 {[%emt 0:00:07]} Bd6 {
[%emt 0:00:41]} 8. Qe2+ {[%emt 0:00:06]} Be6 {[%emt 0:00:17]} 9. Nd4 {[%emt 0:
00:17]} O-O {[%emt 0:00:31]} 10. Nxe6 {[%emt 0:00:03]} fxe6 {[%emt 0:00:07]}
11. Bxc6 {[%emt 0:00:03]} bxc6 {[%emt 0:00:06]} 12. b3 {[%emt 0:00:02]} Kh8 {
[%emt 0:27:01]} 13. Bb2 {[%emt 0:01:00]} Qe7 {[%emt 0:08:16]} 14. O-O-O {
[%emt 0:02:24]} Ba3 {[%emt 0:12:01]} 15. Rhe1 {[%emt 0:03:25]} Rae8 {[%emt 0:
00:26]} 16. Qc4 {[%emt 0:04:44]} Ng4 {[%emt 0:02:30]} 17. Re2 {[%emt 0:00:48]}
Nxh2 {[%emt 0:02:12]} 18. Rh1 {[%emt 0:09:35]} f3 {[%emt 0:03:42]} 19. gxf3 {
[%emt 0:00:54]} Nxf3 {[%emt 0:00:03]} 20. Qa4 {[%emt 0:03:58]} Bxb2+ {[%emt 0:
03:25]} 21. Kxb2 {[%emt 0:00:36]} h6 {[%emt 0:00:10]} 22. Qe4 {[%emt 0:05:06]}
e5 {[%emt 0:03:36]} 23. Rg2 {[%emt 0:03:17]} Rf6 {[%emt 0:01:45]} 24. Rh3 {
[%emt 0:02:01]} Qf7 {[%emt 0:04:23]} 25. Qe3 {[%emt 0:05:33]} Rf8 {[%emt 0:05:
16]} 26. Rgg3 {[%emt 0:06:57]} Rf4 {[%emt 0:02:25]} 27. Ne2 {[%emt 0:06:35]}
Rf5 {[%emt 0:00:15]} 28. Rg4 {[%emt 0:05:30]} Rh5 {[%emt 0:03:49]} 29. Rxh5 {
[%emt 0:11:28]} Qxh5 {[%emt 0:00:03]} 30. Ra4 {[%emt 0:00:19]} Qg6 {[%emt 0:00:
43]} 31. Rxa7 {[%emt 0:04:53]} h5 {[%emt 0:00:04]} 32. Qc5 {[%emt 0:00:27]} Rf6
{[%emt 0:01:42]} 33. Ra8+ {[%emt 0:06:29]} Kh7 {[%emt 0:00:04]} 34. Qc4 {
[%emt 0:00:12]} h4 {[%emt 0:01:05]} 35. Qg8+ {[%emt 0:00:39]} Kh6 {[%emt 0:00:
04]} 36. Qc4 {[%emt 0:01:21]} Kh7 {[%emt 0:03:24]} 37. Qg8+ {[%emt 0:03:10]}
Kh6 {[%emt 0:00:04]} 38. Qc4 {[%emt 0:02:08]} Kh7 1/2-1/2

[Event "71st RUS-ch Superfinal Women 2021"]
[Site "Ufa"]
[Date "2021.10.20"]
[Round "11.2"]
[White "Pogonina, Natalija"]
[Black "Garifullina, Leya"]
[Result "1/2-1/2"]
[ECO "A06"]
[WhiteElo "2467"]
[BlackElo "2409"]
[Annotator "ChessBase"]
[PlyCount "89"]
[EventDate "2021.10.09"]
[EventType "tourn"]
[EventCountry "RUS"]
[SourceTitle "playchess.com"]
[Source "ChessBase"]
[SourceQuality "1"]
[TimeControl "40/5400+30:1800+30"]

1. Nf3 {[%emt 0:00:07]} d5 {[%emt 0:00:06]} 2. g3 {[%emt 0:00:14]} Nf6 {
[%emt 0:00:06]} 3. Bg2 {[%emt 0:00:41]} e6 {[%emt 0:00:05]} 4. c4 {[%emt 0:00:
23]} Be7 {[%emt 0:00:04]} 5. d4 {[%emt 0:00:25]} O-O {[%emt 0:00:08]} 6. Nc3 {
[%emt 0:00:20]} dxc4 {[%emt 0:02:21]} 7. Ne5 {[%emt 0:00:34]} Nc6 {[%emt 0:00:
21]} 8. Bxc6 {[%emt 0:01:25]} bxc6 {[%emt 0:00:04]} 9. Nxc6 {[%emt 0:00:06]}
Qe8 {[%emt 0:00:02]} 10. Nxe7+ {[%emt 0:00:15]} Qxe7 {[%emt 0:00:03]} 11. Qa4 {
[%emt 0:00:38]} Bb7 {[%emt 0:04:13]} 12. O-O {[%emt 0:10:33]} Bd5 {[%emt 0:06:
03]} 13. Bg5 {[%emt 0:07:41]} Qd7 {[%emt 0:01:37]} 14. Qxd7 {[%emt 0:14:08]}
Nxd7 {[%emt 0:00:17]} 15. e4 {[%emt 0:00:16]} Bb7 {[%emt 0:02:35]} 16. Rad1 {
[%emt 0:05:51]} Nb6 {[%emt 0:03:33]} 17. Rfe1 {[%emt 0:02:39]} Rac8 {[%emt 0:
11:10]} 18. a4 {[%emt 0:05:35]} a5 {[%emt 0:03:57]} 19. Be7 {[%emt 0:06:23]}
Rfe8 {[%emt 0:00:10]} 20. Bc5 {[%emt 0:00:08]} Nd7 {[%emt 0:01:15]} 21. Ba3 {
[%emt 0:01:17]} Nb6 {[%emt 0:00:07]} 22. Bc5 {[%emt 0:09:32]} Nd7 {[%emt 0:00:
05]} 23. Ba7 {[%emt 0:00:11]} Ra8 {[%emt 0:01:26]} 24. Nb5 {[%emt 0:02:43]}
Rec8 {[%emt 0:03:29]} 25. d5 {[%emt 0:11:32]} Ne5 {[%emt 0:04:29]} 26. Re3 {
[%emt 0:00:12]} c6 {[%emt 0:26:46]} 27. Nd6 {[%emt 0:02:36]} Rc7 {[%emt 0:01:
53]} 28. Nxb7 {[%emt 0:08:22]} Rxb7 {[%emt 0:02:18]} 29. Bd4 {[%emt 0:00:08]}
Nd3 {[%emt 0:00:41]} 30. dxc6 {[%emt 0:02:14]} Rb3 {[%emt 0:03:53]} 31. Bc3 {
[%emt 0:03:25]} Rb6 {[%emt 0:01:06]} 32. c7 {[%emt 0:00:43]} Rc6 {[%emt 0:00:
03]} 33. Bxa5 {[%emt 0:04:05]} Rxa5 {[%emt 0:02:03]} 34. Rexd3 {[%emt 0:00:16]}
cxd3 {[%emt 0:00:02]} 35. Rxd3 {[%emt 0:00:06]} g5 {[%emt 0:00:07]} 36. Rd8+ {
[%emt 0:00:34]} Kg7 {[%emt 0:00:02]} 37. c8=Q {[%emt 0:00:07]} Rxc8 {[%emt 0:
00:02]} 38. Rxc8 {[%emt 0:00:09]} Rxa4 {[%emt 0:00:01]} 39. f3 {[%emt 0:01:27]}
Rb4 {[%emt 0:00:13]} 40. Rc2 {[%emt 0:00:00]} Kf6 {[%emt 0:00:00]} 41. Kg2 {
[%emt 0:17:47]} Ke5 {[%emt 0:03:09]} 42. Kh3 {[%emt 0:01:09]} h5 {[%emt 0:00:
38]} 43. Rc5+ {[%emt 0:02:58]} Kf6 {[%emt 0:00:07]} 44. Rc2 {[%emt 0:00:58]}
Ke5 {[%emt 0:00:03]} 45. Rc5+ {[%emt 0:00:05]} 1/2-1/2

[Event "71st RUS-ch Superfinal Women 2021"]
[Site "Ufa"]
[Date "2021.10.20"]
[Round "11.3"]
[White "Voit, Daria"]
[Black "Kashlinskaya, Alina"]
[Result "1/2-1/2"]
[ECO "A06"]
[WhiteElo "2357"]
[BlackElo "2493"]
[Annotator "ChessBase"]
[PlyCount "106"]
[EventDate "2021.10.09"]
[EventType "tourn"]
[EventCountry "RUS"]
[SourceTitle "playchess.com"]
[Source "ChessBase"]
[SourceQuality "1"]
[TimeControl "40/5400+30:1800+30"]

1. Nf3 {[%emt 0:00:04]} d5 {[%emt 0:00:13]} 2. g3 {[%emt 0:00:26]} c6 {[%emt 0:
00:45]} 3. Bg2 {[%emt 0:00:38]} Bg4 {[%emt 0:00:22]} 4. d3 {[%emt 0:02:46]} Nd7
{[%emt 0:01:36]} 5. O-O {[%emt 0:00:58]} Ngf6 {[%emt 0:00:40]} 6. Nbd2 {
[%emt 0:01:35]} e5 {[%emt 0:00:29]} 7. h3 {[%emt 0:01:24]} Bh5 {[%emt 0:00:48]}
8. e4 {[%emt 0:06:54]} dxe4 {[%emt 0:00:34]} 9. dxe4 {[%emt 0:00:19]} Bc5 {
[%emt 0:00:26]} 10. Qe2 {[%emt 0:01:52]} O-O {[%emt 0:00:59]} 11. Nb3 {[%emt 0:
09:19]} Bb6 {[%emt 0:04:57]} 12. Be3 {[%emt 0:07:43]} Re8 {[%emt 0:01:12]} 13.
Rad1 {[%emt 0:11:42]} Qc7 {[%emt 0:01:56]} 14. Rfe1 {[%emt 0:10:16]} Bxe3 {
[%emt 0:22:57]} 15. Qxe3 {[%emt 0:00:39]} c5 {[%emt 0:03:29]} 16. Nbd2 {
[%emt 0:07:52]} c4 {[%emt 0:02:31]} 17. Nb1 {[%emt 0:01:37]} Nc5 {[%emt 0:01:
55]} 18. Nc3 {[%emt 0:00:21]} Bxf3 {[%emt 0:16:50]} 19. Bxf3 {[%emt 0:00:53]}
Rad8 {[%emt 0:00:11]} 20. Be2 {[%emt 0:13:14]} Ne6 {[%emt 0:02:15]} 21. Rxd8 {
[%emt 0:00:53]} Rxd8 {[%emt 0:00:32]} 22. Qxa7 {[%emt 0:00:29]} Nd4 {[%emt 0:
02:41]} 23. Qa4 {[%emt 0:11:50]} Qc5 {[%emt 0:09:03]} 24. Bd1 {[%emt 0:01:17]}
h5 {[%emt 0:00:21]} 25. a3 {[%emt 0:02:13]} h4 {[%emt 0:03:42]} 26. g4 {
[%emt 0:00:19]} Ne6 {[%emt 0:02:14]} 27. Re3 {[%emt 0:00:31]} Nf4 {[%emt 0:01:
50]} 28. Be2 {[%emt 0:01:25]} Rc8 {[%emt 0:09:00]} 29. Qb5 {[%emt 0:00:53]} Qc7
{[%emt 0:00:32]} 30. Bf1 {[%emt 0:02:04]} Ne6 {[%emt 0:00:17]} 31. Nd5 {
[%emt 0:00:30]} Nxd5 {[%emt 0:00:30]} 32. exd5 {[%emt 0:00:12]} Nd4 {[%emt 0:
00:29]} 33. d6 {[%emt 0:00:16]} Qxd6 {[%emt 0:00:29]} 34. Qxb7 {[%emt 0:00:18]}
Rb8 {[%emt 0:00:41]} 35. Qe4 {[%emt 0:02:18]} Rxb2 {[%emt 0:00:36]} 36. c3 Qf6
37. f3 {[%emt 0:02:02]} Nc2 {[%emt 0:07:48]} 38. Re2 {[%emt 0:00:03]} Qb6+ {
[%emt 0:00:09]} 39. Kh1 {[%emt 0:00:53]} Qb3 {[%emt 0:03:14]} 40. Qa8+ {
[%emt 0:00:00]} Kh7 {[%emt 0:00:00]} 41. Rxe5 {[%emt 0:06:14]} Qb7 {[%emt 0:03:
12]} 42. Qxb7 {[%emt 0:10:16]} Rxb7 {[%emt 0:00:20]} 43. Bxc4 {[%emt 0:00:03]}
Nxa3 {[%emt 0:00:49]} 44. Bd3+ {[%emt 0:01:52]} g6 {[%emt 0:00:10]} 45. c4 {
[%emt 0:07:21]} Rb3 {[%emt 0:03:21]} 46. Rd5 {[%emt 0:00:04]} Rc3 {[%emt 0:00:
55]} 47. c5 {[%emt 0:00:11]} Nc2 {[%emt 0:01:22]} 48. Be4 {[%emt 0:00:28]} Ne3
{[%emt 0:01:51]} 49. Rd7 {[%emt 0:02:20]} Rxc5 {[%emt 0:04:50]} 50. Rxf7+ {
[%emt 0:00:05]} Kg8 {[%emt 0:00:08]} 51. Bxg6 {[%emt 0:00:49]} Rc1+ {[%emt 0:
00:12]} 52. Kh2 {[%emt 0:00:02]} Rf1 {[%emt 0:00:12]} 53. g5 {[%emt 0:04:27]}
Rf2+ {[%emt 0:00:08]} 1/2-1/2